Workbook

Sheet 国有资本经营预算
A1: 附件3
A2: 2020年市本级国有资本经营预算调整表
A3: 单位：万元
A4: 科 目 | B4: 2020年预算数 | F4: 调整（+-）金额 | J4: 2020年调整预算数 | N4: 科 目 | O4: 2020年预算数 | S4: 调整（+-）金额 | W4: 2020年调整预算数
B5: 市本级 小计 | C5: 市直 | D5: 江东 新区 | E5: 市高 新区 | F5: 市本级 小计 | G5: 市直 | H5: 江东 新区 | I5: 市高 新区 | J5: 市本级 小计 | K5: 市直 | L5: 江东 新区 | M5: 市高 新区 | O5: 市本级 小计 | P5: 市直 | Q5: 江东 新区 | R5: 市高 新区 | S5: 市本级小计 | T5: 市直 | U5: 江东 新区 | V5: 市高 新区 | W5: 市本级小计 | X5: 市直 | Y5: 江东 新区 | Z5: 市高 新区
A6: 一、利润收入 | B6: =SUM(C6:E6) -> 1,474 | C6: 940 | D6: 132 | E6: 402 | F6: =SUM(G6:I6) -> 0 | J6: =B6+F6 -> 1,474 | K6: 940 | L6: =D6+H6 -> 132 | M6: =E6+I6 -> 402 | N6: 一、国有资本经营预算支出 | O6: =SUM(P6:R6) -> 2,685 | P6: =SUM(P7:P10) -> 2,102 | Q6: 0 | R6: 583 | S6: =SUM(T6:V6) -> 11,000 | T6: =SUM(T7:T10) -> 11,000 | U6: 0 | V6: 0 | W6: =O6+S6 -> 13,685 | X6: 13,102 | Y6: 0 | Z6: 583
A7: 二、股利、股息收入 | B7: 3,553 | C7: 3,372 | E7: 181 | F7: 0 | J7: 3,553 | K7: 3,372 | L7: 0 | M7: 181 | N7: （一）解决历史遗留问题及改革成本支出 | O7: 30 | P7: 30 | S7: 0 | W7: =O7+S7 -> 30 | X7: 30 | Y7: 0 | Z7: 0
A8: 三、产权转让收入 | B8: 165 | C8: 165 | F8: 25,373 | G8: =11000+14373 -> 25,373 | J8: 25,538 | K8: =C8+G8 -> 25,538 | L8: 0 | M8: 0 | N8: （二）国有企业资本金注入 | O8: 774 | P8: 774 | S8: 11,000 | T8: 11,000 | W8: =O8+S8 -> 11,774 | X8: 11,774 | Y8: 0 | Z8: 0
A9: 四、清算收入 | B9: 0 | F9: 0 | J9: 0 | K9: 0 | L9: 0 | M9: 0 | N9: （三）国有企业政策性补贴 | O9: 0 | S9: 0 | W9: =O9+S9 -> 0 | X9: 0 | Y9: 0 | Z9: 0
A10: 五、其他国有资本经营收入 | B10: 30,646 | C10: 30,260 | D10: 386 | F10: -30,000 | G10: =K10-C10 -> -30,000 | J10: 646 | K10: 260 | L10: 386 | M10: 0 | N10: （四）其他国有资本经营预算支出 | O10: 1,881 | P10: 1,298 | R10: 583 | S10: 0 | W10: =O10+S10 -> 1,881 | X10: 1,298 | Y10: 0 | Z10: 583
A11: 六、国有资本经营预算转移支付收入 | B11: 0 | F11: 0 | J11: 0 | K11: 0 | L11: 0 | M11: 0 | N11: 二、转移性支出 | O11: 33,155 | P11: =P12+P13 -> 32,637 | Q11: 518 | R11: 0 | S11: -15,627 | T11: =T12+T13 -> -15,627 | U11: 0 | V11: 0 | W11: =O11+S11 -> 17,528 | X11: =X12+X13 -> 17,010 | Y11: 518 | Z11: 0
J12: 0 | K12: 0 | L12: 0 | M12: 0 | N12: （一）国有资本经营预算转移支付 | O12: 0 | S12: 0 | W12: =O12+S12 -> 0 | Y12: 0 | Z12: 0
J13: 0 | K13: 0 | L13: 0 | M13: 0 | N13: （二）调出资金 | O13: 33,155 | P13: 32,637 | Q13: 518 | S13: -15,627 | T13: =-30000+14373 -> -15,627 | W13: =O13+S13 -> 17,528 | X13: 17,010 | Y13: 518 | Z13: 0
A14: 收 入 总 计 | B14: =SUM(B6:B11) -> 35,839 | C14: 34,738 | D14: 518 | E14: 583 | F14: -4,627 | G14: -4,627 | H14: 0 | I14: 0 | J14: 31,212 | K14: 30,111 | L14: 518 | M14: 583 | N14: 收入合计 | O14: =SUM(O6,O11) -> 35,839 | P14: 34,738 | Q14: 518 | R14: 583 | S14: -4,627 | T14: -4,627 | U14: 0 | V14: 0 | W14: =O14+S14 -> 31,212 | X14: 30,111 | Y14: 518 | Z14: 583

Sheet Sheet1
